bitfinex/quotes_SOLUSD_20240601
["timestamp","ask_amount","ask_price","bid_price","bid_amount"]
[1717278812279,2.2126,167.23,167.21,6.17]
[1717278812567,2.2127,167.21,167.2,6.17]
[1717278812745,2.2127,167.22,167.2,6.17]
[1717278813985,2.2127,167.21,167.2,6.17]
[1717278814189,2.2127,167.22,167.2,6.17]
[1717278815478,2.2127,167.22,167.16,52.76911995]
[1717278815684,2.2127,167.21,167.17,5.59890052]
[1717278815977,2.2127,167.21,167.2,6.17]
[1717278816053,2.2127,167.21,167.2,11.42890052]
[1717278817456,2.2127,167.21,167.2,5.25890052]
[1717278817659,2.2127,167.21,167.2,11.42890052]
[1717278817876,2.2127,167.22,167.2,11.42890052]
[1717278818081,2.2127,167.22,167.2,6.17]
[1717278819263,2.2127,167.21,167.2,6.17]
[1717278819464,2.2127,167.21,167.2,5.2587103]
[1717278819658,2.2127,167.21,167.2,11.4287103]
[1717278820782,2.2127,167.21,167.2,5.2587103]
[1717278820991,2.2127,167.21,167.2,11.4287103]
[1717278821295,2.2127,167.21,167.2,5.2587103]
[1717278821466,2.2127,167.21,167.18,5.2587103]
[1717278821668,2.2127,167.21,167.2,6.17]
[1717278821876,2.2127,167.21,167.2,5.2587103]
[1717278822086,2.2127,167.21,167.2,6.17]
[1717278822274,2.2127,167.22,167.2,11.4287103]
[1717278822598,2.2127,167.22,167.2,6.17]
[1717278825506,2.2127,167.21,167.2,6.17]
[1717278825804,2.2127,167.21,167.16,46.29311995]
[1717278825991,2.2127,167.21,167.17,5.25913319]
[1717278826198,2.2127,167.21,167.18,5.25913319]
[1717278826384,2.2127,167.21,167.19,11.42913319]
[1717278826693,2.2127,167.21,167.19,6.17]
[1717278828989,2.2127,167.21,167.16,46.29311995]
[1717278829185,2.2127,167.21,167.17,5.25910856]
[1717278829598,2.2127,167.21,167.16,46.29311995]
[1717278829599,2.2127,167.21,167.19,6.17]
[1717278830319,2.2127,167.22,167.19,6.17]
[1717278831301,2.2127,167.21,167.19,6.17]
[1717278832286,4.4251,167.23,167.19,6.17]
[1717278832287,2.2127,167.22,167.19,6.17]
[1717278833410,2.2127,167.22,167.16,46.29311995]
[1717278833705,2.2127,167.22,167.19,6.17]
[1717278838225,2.2127,167.22,167.16,46.29311995]
[1717278838412,2.2127,167.22,167.19,6.17]
[1717278839101,2.2127,167.22,167.16,46.29311995]
[1717278839402,2.2127,167.22,167.19,6.17]
[1717278840333,8.8518,167.2,167.16,46.29311995]
[1717278840650,8.8518,167.2,167.09,16.2555]
[1717278840651,2.2134,167.16,167.09,62.5680138]
[1717278840878,2.2134,167.16,167.1,5.26225354]
[1717278841127,2.2133,167.17,167.14,6.17]
[1717278841499,2.2133,167.17,167.15,6.17]
[1717278842525,2.2133,167.17,167.14,6.17]
[1717278842827,2.2133,167.17,167.15,5.26199151]
[1717278842999,2.2133,167.17,167.15,6.17]
[1717278844297,2.2133,167.17,167.09,62.5680138]
[1717278844540,2.2133,167.17,167.15,6.17]
[1717278845415,2.2134,167.16,167.15,6.17]
[1717278846719,2.2134,167.16,167.14,6.17]
[1717278848810,2.2134,167.16,167.1,0.34]
[1717278849013,2.2134,167.16,167.14,6.17]
[1717278849335,15.4887,167.22,167.15,6.17]
[1717278849511,4.4256,167.21,167.17,6.17]
[1717278849712,2.2131,167.19,167.17,6.17]
[1717278850533,2.2131,167.19,167.13,0.34]
[1717278850736,2.2131,167.19,167.16,6.17]
[1717278851518,2.2131,167.19,167.13,0.34]
[1717278851710,2.2131,167.19,167.16,6.17]
[1717278852933,2.2131,167.19,167.17,6.17]
[1717278855615,2.2131,167.18,167.13,0.34]
[1717278856135,2.2131,167.19,167.16,6.17]
[1717278857616,2.2131,167.19,167.13,0.34]
[1717278857834,2.2131,167.19,167.16,6.17]
[1717278858738,2.2131,167.19,167.13,0.34]
[1717278858929,2.2131,167.18,167.16,6.17]
[1717278859427,2.2131,167.19,167.16,6.17]
[1717278859743,2.2131,167.18,167.16,6.17]
[1717278860640,2.2133,167.17,167.09,46.3125138]
[1717278860833,17.0078,167.19,167.12,6.17]
[1717278861037,2.2133,167.17,167.12,6.17]
[1717278861241,17.0078,167.19,167.12,6.17]
[1717278861432,2.2134,167.16,167.12,6.17]
[1717278862054,2.2134,167.16,167.13,6.17]
[1717278862435,2.2134,167.16,167.09,46.3125138]
[1717278862742,2.2133,167.17,167.1,5.26236051]
[1717278862943,2.2133,167.17,167.13,6.17]
[1717278863944,2.2132,167.18,167.13,6.17]
[1717278864128,2.2132,167.18,167.14,6.17]
[1717278866737,2.2133,167.17,167.14,6.17]
[1717278868149,2.2132,167.18,167.14,6.17]
[1717278868553,2.2133,167.17,167.09,46.3125138]
[1717278868727,2.2133,167.17,167.14,6.17]
[1717278869447,2.2133,167.17,167.1,0.34]
[1717278869651,2.2133,167.17,167.14,6.17]
[1717278871459,2.2133,167.17,167.13,6.17]
[1717278875151,2.2134,167.16,167.13,6.17]
[1717278877356,6.4115,167.22,167.09,46.3125138]
[1717278877534,11.068,167.15,167.1,11.43228145]
[1717278877739,2.2139,167.13,167.1,6.17]
[1717278878058,2.2137,167.14,167.1,6.17]
[1717278878358,2.2137,167.14,167.11,6.17]
[1717278879462,2.2138,167.13,167.11,6.17]
[1717278882331,2.2137,167.14,167.11,6.17]
[1717278883067,2.2138,167.13,167.09,46.3125138]
[1717278883366,2.2138,167.13,167.1,11.4329754]
[1717278883539,2.2138,167.13,167.11,5.2629754]
[1717278886043,2.2138,167.13,167.12,5.2629754]
[1717278886446,2.2138,167.13,167.11,5.2629754]
[1717278892248,2.2138,167.13,167.12,5.2629754]
[1717278892449,2.2138,167.13,167.11,5.2629754]
[1717278892650,2.2138,167.13,167.12,5.2629754]
[1717278892855,2.2138,167.13,167.11,5.2629754]
[1717278893065,2.2138,167.13,167.12,5.2629754]
[1717278893270,2.2138,167.13,167.11,5.2629754]
[1717278900956,2.2137,167.14,167.11,6.17]
[1717278901273,2.2137,167.14,167.12,6.17]
[1717278902162,2.2137,167.14,167.09,52.7168138]
[1717278902360,2.2137,167.14,167.12,6.17]
[1717278902971,2.2136,167.15,167.12,6.17]
[1717278903176,4.4266,167.17,167.13,6.17]
[1717278903379,2.2135,167.16,167.13,6.17]
[1717278903761,2.2135,167.16,167.1,0.34]
[1717278903762,4.426,167.2,167.15,6.17]
[1717278903964,8.8516,167.21,167.16,6.17]
[1717278903965,2.2131,167.19,167.16,6.17]
[1717278904451,8.8516,167.21,167.16,6.17]
[1717278904452,2.2131,167.18,167.16,6.17]
[1717278904667,2.213,167.19,167.16,6.17]
[1717278904891,2.2129,167.2,167.16,6.17]
[1717278905488,2.2129,167.2,167.17,6.17]
[1717278905689,2.213,167.19,167.17,6.17]
[1717278906383,2.213,167.19,167.12,6.34]
[1717278906689,2.213,167.19,167.16,6.17]
[1717278915409,2.213,167.19,167.17,6.17]
[1717278915776,4.4253,167.22,167.17,6.17]
[1717278915777,2.2129,167.2,167.17,6.17]
[1717278916672,2.2129,167.2,167.13,0.17]
[1717278924504,2.213,167.19,167.13,0.17]
[1717278926183,2.2129,167.2,167.13,0.17]
[1717278933759,6.17,167.22,167.13,0.17]
[1717278934031,6.642,167.26,167.13,0.17]
[1717278934032,2.2132,167.18,167.15,6.17]
[1717278934329,2.2132,167.18,167.14,0.17]
[1717278934523,2.2132,167.18,167.15,6.17]
[1717278934925,2.2131,167.19,167.15,6.17]
[1717278938529,2.213,167.2,167.15,6.17]
[1717278941037,2.213,167.19,167.15,6.17]
[1717278942917,2.2129,167.2,167.15,6.17]
[1717278943717,2.2129,167.2,167.14,0.17]
[1717278943914,2.2129,167.2,167.15,6.17]
[1717278944640,2.2131,167.19,167.14,6.34]
[1717278944837,2.2131,167.19,167.14,0.17]
[1717278945031,2.2131,167.19,167.14,6.34]
[1717278945529,4.4252,167.23,167.16,6.17]
[1717278945761,2.2129,167.2,167.16,6.17]
[1717278950037,2.2129,167.2,167.15,0.17]
[1717278950243,2.2129,167.2,167.16,6.17]
[1717278951440,2.2129,167.2,167.17,6.17]
[1717278974680,2.2129,167.2,167.19,6.17]
[1717278975672,2.2129,167.2,167.18,6.17]
[1717278979950,2.2129,167.2,167.19,6.17]
[1717278983077,2.2129,167.2,167.18,6.17]
[1717278985473,2.213,167.19,167.18,6.17]
[1717278986275,29.16980831,167.41,167.18,6.17]
[1717278986581,29.16980831,167.41,167.17,6.3281]
[1717278986582,2.2128,167.21,167.19,6.17]
[1717278986773,2.2129,167.2,167.19,6.17]
[1717278987250,2.2129,167.2,167.18,6.17]
[1717278990382,2.213,167.19,167.18,6.17]
[1717278990678,2.213,167.2,167.18,6.17]
[1717278992974,2.2128,167.21,167.18,6.17]
[1717278993160,2.2129,167.2,167.18,6.17]
[1717278993882,2.2129,167.2,167.16,6.1145]
[1717278994064,2.2129,167.2,167.18,6.17]
[1717278996067,2.2127,167.22,167.18,6.17]
[1717278996279,4.4248,167.24,167.18,6.17]
[1717278996280,9.3984133,167.21,167.18,6.17]
[1717278996477,2.2129,167.2,167.18,6.17]
[1717278997767,2.2127,167.22,167.18,6.17]
[1717278997973,9.39840323,167.21,167.18,6.17]
[1717278998292,2.2128,167.21,167.19,6.17]
[1717278998470,2.2129,167.2,167.19,6.17]
[1717278998662,2.2129,167.2,167.18,6.17]
[1717279003489,2.2126,167.22,167.18,12.2845]
[1717279003695,7.1853978,167.21,167.2,6.17]
[1717279003883,7.1853978,167.21,167.2,6.51]
[1717279004585,2.2126,167.22,167.2,6.51]
[1717279005281,7.18511286,167.21,167.2,6.51]
[1717279005494,9.39771286,167.22,167.2,6.51]
[1717279005708,7.18511286,167.21,167.2,6.51]
[1717279005879,7.18511286,167.22,167.2,6.51]
[1717279006188,9.39771286,167.22,167.2,6.51]
[1717279006403,7.18511286,167.21,167.2,6.51]
[1717279007594,9.39771286,167.22,167.2,6.51]
[1717279007792,7.18511286,167.21,167.2,6.51]
[1717279009694,2.2125,167.23,167.2,6.51]
[1717279009881,7.18511286,167.22,167.2,6.51]
[1717279010380,2.2125,167.23,167.2,6.51]
[1717279011595,2.2126,167.22,167.2,6.51]
[1717279011798,2.2127,167.21,167.16,60.0145]
[1717279012001,2.2127,167.22,167.19,6.17]
[1717279012807,4.4247,167.25,167.2,6.17]
[1717279013100,2.2125,167.23,167.21,0.17]
[1717279013401,2.2125,167.23,167.21,6.34]
[1717279014796,2.2124,167.24,167.21,6.34]
[1717279016699,2.2125,167.23,167.19,0.17]
[1717279017001,2.2125,167.23,167.2,6.17]
[1717279017376,2.2124,167.24,167.2,6.17]
[1717279017795,2.2125,167.23,167.2,6.17]
[1717279021688,4.4249,167.24,167.16,6.1145]
[1717279022203,2.2127,167.22,167.18,6.17]
[1717279022399,2.2127,167.21,167.18,6.17]
[1717279023904,2.2127,167.22,167.18,6.17]
[1717279024618,2.2127,167.21,167.18,6.17]
[1717279024918,4.4249,167.24,167.19,6.51]
[1717279025468,2.2127,167.22,167.19,0.34]
[1717279025786,2.2127,167.22,167.19,6.51]
[1717279026710,11.0621,167.24,167.12,6.5251]
[1717279026904,2.2127,167.22,167.16,6.17]
[1717279027890,2.2128,167.21,167.16,6.17]
[1717279029691,2.2128,167.21,167.12,31.2051]
[1717279029899,2.2128,167.21,167.16,6.17]
[1717279030495,2.2128,167.21,167.17,6.17]
[1717279031416,2.2124,167.24,167.13,0.34]
[1717279031620,2.2126,167.22,167.18,6.17]
[1717279031804,11.0612,167.25,167.12,31.2051]
[1717279031805,4.4258,167.2,167.12,6.5251]
[1717279032131,2.2131,167.19,167.14,6.17]
[1717279033011,2.2131,167.18,167.14,6.17]
[1717279033408,2.2131,167.18,167.15,6.17]
[1717279035496,2.2131,167.18,167.14,6.17]
[1717279036710,2.2131,167.18,167.09,68.9982428]
[1717279036919,2.2133,167.17,167.14,6.17]
[1717279037225,2.2132,167.18,167.14,6.17]
[1717279037530,2.2132,167.18,167.13,6.17]
[1717279037728,2.2133,167.17,167.13,6.17]
[1717279038621,2.2132,167.18,167.13,6.17]
[1717279039122,2.2132,167.18,167.1,0.34]
[1717279039421,2.2132,167.18,167.15,6.17]
[1717279040417,2.2132,167.18,167.14,6.17]
[1717279041209,2.2132,167.18,167.15,6.17]
[1717279041699,2.2133,167.17,167.1,46.64974226]
[1717279041903,2.2132,167.18,167.14,6.17]
[1717279042203,2.2133,167.17,167.14,6.17]
[1717279043116,2.2132,167.18,167.14,6.17]
[1717279046717,12.4028,167.2,167.1,46.30974226]
[1717279047017,2.2135,167.16,167.13,6.17]
[1717279050722,2.2133,167.17,167.13,6.17]
[1717279051705,4.4263,167.18,167.1,46.30974226]
[1717279051913,2.2135,167.16,167.13,6.17]
[1717279052119,2.2135,167.16,167.12,6.17]
[1717279052844,2.2135,167.16,167.13,6.17]
[1717279054327,2.2133,167.17,167.13,6.17]
[1717279055627,11.0659,167.18,167.1,46.30974226]
[1717279055839,2.2136,167.15,167.12,6.17]
[1717279056222,2.2135,167.16,167.1,46.30974226]
[1717279056432,2.2135,167.16,167.12,6.17]
[1717279056824,2.2135,167.16,167.11,6.17]
[1717279060727,2.2134,167.17,167.12,6.17]
[1717279061023,2.2134,167.17,167.11,6.17]
[1717279061934,2.2134,167.16,167.11,6.17]
[1717279067244,2.2134,167.16,167.12,6.17]
[1717279075854,8.98363874,167.13,167.12,6.17]
[1717279076152,8.98363874,167.13,167.12,6.51]
[1717279076350,8.98363874,167.13,167.1,46.30974226]
[1717279076563,8.98363874,167.13,167.12,6.17]
[1717279076933,8.98363874,167.13,167.12,6.51]
[1717279077137,8.98363874,167.13,167.12,6.34]
[1717279077458,8.98363874,167.13,167.12,6.17]
[1717279077962,2.2134,167.16,167.12,6.17]
[1717279079167,2.2133,167.17,167.12,6.17]
[1717279079344,2.2134,167.16,167.12,6.17]
[1717279080665,2.2134,167.16,167.11,0.34]
[1717279081048,2.2134,167.16,167.12,6.17]
[1717279084875,2.2134,167.16,167.11,0.34]
[1717279085077,2.2134,167.16,167.12,6.17]
[1717279085650,2.2135,167.15,167.12,6.17]
[1717279086559,2.2135,167.16,167.12,6.17]
[1717279087571,2.2135,167.16,167.11,0.34]
[1717279087773,8.98357171,167.12,167.11,0.34]
[1717279088105,8.9836703,167.12,167.11,6.51]
[1717279090271,8.9836703,167.12,167.11,0.34]
[1717279090683,8.9836703,167.12,167.11,6.51]
[1717279090976,8.9836703,167.12,167.11,0.34]
[1717279091276,8.9836703,167.12,167.11,6.51]
[1717279096271,8.9836703,167.12,167.11,0.34]
[1717279096579,8.9836703,167.12,167.11,6.51]
[1717279098383,2.2135,167.16,167.11,6.51]
[1717279100583,2.2136,167.15,167.11,6.51]
[1717279103384,2.2135,167.16,167.11,6.51]
[1717279106193,2.2135,167.15,167.11,6.51]
[1717279106490,2.2135,167.16,167.11,6.51]
[1717279106788,6.17,167.19,167.11,0.34]
[1717279107096,2.2136,167.15,167.11,6.51]
[1717279107484,8.98428128,167.12,167.11,6.51]
[1717279108276,8.98428128,167.12,167.11,0.34]
[1717279108470,8.98428128,167.12,167.11,6.51]
[1717279111802,8.98428128,167.12,167.1,46.30974226]
[1717279112105,11.19838128,167.11,167.1,46.30974226]
[1717279112289,2.2141,167.11,167.1,46.30974226]
[1717279112796,8.98428128,167.12,167.1,46.30974226]
[1717279112976,2.2141,167.11,167.1,46.30974226]
[1717279115263,2.2141,167.11,167.08,6.17]
[1717279116894,2.2142,167.1,167.06,6.17]
[1717279117190,2.2142,167.1,167.04,46.3263765]
[1717279117397,2.2142,167.1,167.06,6.17]
[1717279117584,2.2142,167.1,167.04,46.3263765]
[1717279117987,2.2142,167.1,167.06,6.17]
[1717279118476,2.2142,167.1,167.05,0.34]
[1717279118675,2.2142,167.1,167.06,6.17]
[1717279119780,2.2142,167.1,167.07,6.17]
[1717279121792,2.2144,167.09,167.04,46.3263765]
[1717279121984,11.0713,167.1,167.04,46.3263765]
[1717279122183,2.2145,167.08,167.06,6.17]
[1717279123278,4.4285,167.1,167.06,6.17]
[1717279123908,2.2144,167.09,167.06,6.17]
[1717279124689,2.2144,167.09,167.07,6.17]
[1717279125412,2.2145,167.08,167.07,6.17]
[1717279126567,2.2144,167.09,167.07,6.17]
[1717279127013,2.2145,167.08,167.04,52.4963765]
[1717279127199,11.0713,167.1,167.04,52.4963765]
[1717279127511,11.0713,167.1,167.05,6.17]
[1717279127678,2.2144,167.09,167.05,6.17]
[1717279127877,2.2145,167.08,167.05,6.17]
[1717279132518,2.2145,167.08,167.04,46.3263765]
[1717279132805,2.2145,167.08,167.05,6.17]
[1717279134210,2.2144,167.09,167.05,6.17]
[1717279135688,2.2144,167.09,167.06,6.17]
[1717279141214,2.2145,167.08,167.06,6.17]
[1717279141512,2.2145,167.08,167.05,6.17]
[1717279142709,2.2144,167.09,167.05,6.17]
[1717279143418,2.2144,167.09,167.04,46.3263765]
[1717279143711,2.2144,167.09,167.05,6.17]
[1717279144310,2.2144,167.09,167.04,46.3263765]
[1717279144531,2.2145,167.08,167.04,46.3263765]
[1717279144841,8.8581,167.08,167.04,46.3263765]
[1717279145000,2.2149,167.05,167.04,46.3263765]
[1717279145192,2.2148,167.06,167.04,46.3263765]
[1717279145592,2.2147,167.07,167.04,46.3263765]
[1717279146195,8.857,167.1,167.04,52.4963765]
[1717279146396,2.2149,167.05,167.04,46.3263765]
[1717279148106,2.2149,167.05,167.02,6.17]
[1717279148535,2.2148,167.06,167.02,6.17]
[1717279148914,2.2147,167.07,167.01,0.5748161]
[1717279149137,2.2147,167.06,167.02,6.17]
[1717279151409,2.2147,167.06,167.01,0.5748161]
[1717279151729,2.2147,167.06,167.02,6.17]
[1717279152508,2.2147,167.06,167.01,0.5748161]
[1717279152734,2.2149,167.05,167.02,6.17]
[1717279153107,2.2148,167.06,167.02,6.17]
[1717279153408,2.2148,167.06,167.03,6.17]
[1717279154020,2.2147,167.07,167.01,0.5748161]
[1717279154225,2.2147,167.07,167.03,6.17]
[1717279156249,2.2147,167.07,167.02,6.17]
[1717279156540,2.2147,167.06,167.02,6.17]
[1717279157218,2.2147,167.06,167.03,6.17]
[1717279157416,2.2147,167.07,167.04,6.17]
[1717279158208,2.2148,167.06,167.04,6.17]
[1717279158527,2.2148,167.06,167.03,6.17]
[1717279158728,2.2148,167.06,167.01,0.5748161]
[1717279158905,2.2148,167.06,167.03,6.17]
[1717279160116,2.2148,167.06,167.01,0.5748161]
[1717279160317,2.2148,167.06,167.03,6.17]
[1717279167235,2.2147,167.07,167.03,6.17]
[1717279168241,2.2147,167.06,167.03,6.17]
[1717279173329,2.2149,167.05,167.03,6.17]
[1717279175850,2.2148,167.06,167.03,6.17]
[1717279176429,22.27327031,167.1,167.03,6.17]
[1717279176625,2.2147,167.07,167.04,6.51]
[1717279176932,2.2147,167.07,167.05,6.17]
[1717279178767,2.2147,167.07,167.04,0.34]
[1717279179067,2.2145,167.08,167.05,6.17]
[1717279179962,2.2145,167.08,167.04,0.34]
[1717279180568,28.91587031,167.1,167.04,0.34]
[1717279180569,2.2146,167.07,167.04,6.51]
[1717279181841,2.2146,167.07,167.04,0.34]
[1717279182040,2.2146,167.07,167.04,6.51]
[1717279183662,2.2145,167.08,167.04,6.51]
[1717279184053,2.2145,167.08,167.05,6.17]
[1717279184877,2.2146,167.07,167.04,0.34]
[1717279185068,2.2146,167.07,167.05,6.17]
[1717279185367,2.2145,167.08,167.05,6.17]
[1717279186061,2.2145,167.08,167.04,0.34]
[1717279186257,2.2146,167.07,167.05,6.17]
[1717279186777,2.2145,167.08,167.05,6.17]
[1717279188373,2.2146,167.07,167.04,0.34]
[1717279188542,2.2146,167.07,167.05,6.17]
[1717279188748,2.2145,167.08,167.05,6.17]
[1717279189955,2.2145,167.08,167.04,0.34]
[1717279190155,2.2145,167.08,167.05,6.17]
[1717279193157,11.20147599,167.09,167.06,6.34]
[1717279193470,11.20147599,167.09,167.06,6.17]
[1717279194184,8.98707599,167.08,167.06,6.17]
[1717279196373,8.98707599,167.08,167.04,0.34]
[1717279196670,8.98707599,167.08,167.06,6.17]
[1717279199568,8.98707599,167.08,167.07,6.17]
[1717279199772,8.98707599,167.09,167.07,6.51]
[1717279199958,8.98707599,167.09,167.08,13.0577]
[1717279200161,2.2136,167.15,167.08,13.0577]
[1717279200368,2.2137,167.14,167.11,6.17]
[1717279200669,2.2137,167.14,167.12,6.17]
[1717279201074,4.4274,167.14,167.06,35.92]
[1717279201377,4.4274,167.14,167.09,6.17]
[1717279201568,2.2141,167.11,167.03,35.94]
[1717279201873,2.2141,167.11,167.09,6.17]
[1717279202659,2.2142,167.1,167.09,6.17]
[1717279202866,2.2141,167.11,167.09,11.43544536]
[1717279203173,2.2142,167.1,167.09,6.17]
[1717279203376,2.2141,167.11,167.09,11.43531057]
[1717279203558,22.5398,167.17,167.09,6.17]
[1717279203765,2.2137,167.14,167.12,6.17]
[1717279204186,2.2137,167.14,167.1,0.34]
[1717279204469,2.2137,167.14,167.11,6.17]
[1717279204978,2.2137,167.14,167.1,0.34]
[1717279205175,2.2137,167.14,167.11,6.17]
[1717279205378,2.2136,167.15,167.11,6.17]
[1717279207875,2.2136,167.15,167.1,0.34]
[1717279208197,2.2136,167.15,167.11,6.17]
[1717279211786,2.2137,167.14,167.1,0.34]
[1717279211966,2.2137,167.14,167.11,6.17]
[1717279212171,2.2136,167.15,167.11,6.17]
[1717279213463,2.2136,167.15,167.1,0.34]
[1717279213785,2.2136,167.15,167.11,6.17]
[1717279214477,2.2136,167.15,167.1,0.34]
[1717279214775,2.2136,167.15,167.11,6.17]
[1717279217588,2.2136,167.15,167.1,0.34]
[1717279217790,2.2136,167.15,167.12,6.17]
[1717279218185,2.2134,167.16,167.12,6.17]
[1717279218573,2.2134,167.16,167.1,0.34]
[1717279218769,15.4925,167.18,167.1,0.34]
[1717279218990,2.2135,167.15,167.11,6.17]
[1717279221177,2.2135,167.15,167.12,0.17]
[1717279221378,2.2135,167.16,167.12,6.51]
[1717279221688,2.2135,167.16,167.12,6.34]
[1717279222277,2.2135,167.15,167.12,6.34]
[1717279222675,2.2135,167.15,167.12,6.17]
[1717279222875,2.2135,167.16,167.12,6.17]
[1717279223176,2.2135,167.16,167.1,0.17]
[1717279223380,2.2135,167.15,167.12,6.17]
[1717279223582,2.2135,167.15,167.1,0.34]
[1717279223793,2.2135,167.15,167.12,6.17]
[1717279224698,2.2135,167.15,167.1,0.34]
[1717279224898,2.2135,167.15,167.11,6.17]
[1717279225385,2.2135,167.15,167.12,6.17]
[1717279227083,2.2135,167.15,167.1,0.34]
[1717279227393,2.2135,167.15,167.12,6.17]
[1717279227601,2.2135,167.16,167.12,6.17]
[1717279230182,2.2135,167.15,167.13,6.17]
[1717279230702,2.2135,167.16,167.13,6.17]
[1717279233387,2.2135,167.16,167.09,0.34]
[1717279233697,2.2135,167.16,167.13,6.17]
[1717279236089,2.2133,167.17,167.09,96.28]
[1717279236295,2.2132,167.18,167.15,6.17]
[1717279236521,2.2132,167.18,167.09,96.28]
[1717279236708,2.2132,167.18,167.15,6.17]
[1717279238004,2.2132,167.18,167.11,95.94]
[1717279238211,2.2131,167.19,167.15,6.17]
[1717279239121,13.1465,167.21,167.16,6.17]
[1717279239122,6.5082,167.21,167.16,6.17]
[1717279239303,2.2129,167.2,167.16,6.17]
[1717279239632,2.2129,167.2,167.17,6.17]
[1717279239817,2.2128,167.21,167.17,6.17]
[1717279241520,2.2128,167.21,167.18,6.17]
[1717279241827,2.2128,167.21,167.19,6.17]
[1717279242010,2.2125,167.23,167.19,6.17]
[1717279242340,2.2125,167.23,167.2,6.51]
[1717279242616,2.2125,167.23,167.18,0.34]
[1717279242824,2.2125,167.23,167.2,6.17]
[1717279243011,2.2125,167.23,167.19,0.17]
[1717279243208,2.2125,167.23,167.2,6.17]
[1717279245514,2.2124,167.24,167.2,6.17]
[1717279245716,2.2124,167.24,167.21,6.34]
[1717279245912,2.2124,167.24,167.21,6.17]
[1717279246230,2.2123,167.25,167.21,6.17]
[1717279246529,2.2123,167.25,167.22,6.17]
[1717279246916,12.8058,167.28,167.22,6.17]
[1717279247130,2.2124,167.24,167.21,6.17]
[1717279248741,2.2125,167.23,167.2,0.17]
[1717279249021,2.2124,167.24,167.21,6.17]
[1717279249420,2.2125,167.23,167.2,0.17]
[1717279249734,2.2125,167.23,167.21,6.17]
[1717279250611,2.2124,167.24,167.2,0.17]
[1717279250814,19.908,167.27,167.2,0.17]
[1717279251125,2.2124,167.24,167.21,6.17]
[1717279254441,2.2123,167.25,167.21,6.17]
[1717279258237,6.17,167.27,167.16,6.2941]
[1717279258432,2.2127,167.22,167.18,6.17]
[1717279258824,2.2127,167.21,167.17,6.17]
[1717279259014,2.2127,167.22,167.18,6.17]
[1717279260949,2.2132,167.18,167.13,35.94]
[1717279261123,2.2134,167.16,167.09,35.94]
[1717279261445,2.2134,167.16,167.1,1.74401663]
[1717279261446,2.2135,167.16,167.1,1.74401663]
[1717279261638,11.0652,167.19,167.1,1.74401663]
[1717279261839,2.2141,167.11,167.1,1.74401663]
[1717279263229,2.2141,167.11,167.04,6.213]
[1717279263429,2.2141,167.11,167.07,6.17]
[1717279263625,4.4277,167.13,167.07,6.17]
[1717279263626,2.2142,167.1,167.08,5.26615648]
[1717279264035,2.2141,167.11,167.08,5.26615648]
[1717279264334,2.2142,167.1,167.07,6.17]